bitfinex-derivatives/quotes_SOLF0:USTF0_20250113
["timestamp","ask_amount","ask_price","bid_price","bid_amount"]
[1736782047054,42.00489271,179.31,179.16,42.00489271]
[1736782047555,42.00489271,179.28,179.13,42.00489271]
[1736782047758,4.052,179.27,179.1,50.38489271]
[1736782047958,2.7926,179.12,179.07,42.00489271]
[1736782048148,42.00489271,179.22,179.05,2.7936]
[1736782048351,42.00489271,179.19,179.05,2.7936]
[1736782048754,1.9085,179.21,179.06,2.7936]
[1736782048953,1.9085,179.21,179.07,42.00489271]
[1736782049758,1.9085,179.21,179.04,42.00489271]
[1736782049953,42.00489271,179.19,179.04,42.00489271]
[1736782050359,42.00489271,179.19,179.02,2.7942]
[1736782050762,2.7932,179.09,179.02,2.7942]
[1736782051154,42.00489271,179.19,179.01,42.00489271]
[1736782051359,42.00489271,179.13,178.98,137.74489271]
[1736782051561,4.0099,179.12,178.98,42.00489271]
[1736782051758,2.7941,179.03,178.95,42.00489271]
[1736782052565,42.00489271,179.1,178.91,8.38]
[1736782052775,42.00489271,179.07,178.92,42.00489271]
[1736782053176,2.7953,178.96,178.92,42.00489271]
[1736782053371,42.00489271,179.07,178.92,42.00489271]
[1736782053573,2.7952,178.96,178.92,42.00489271]
[1736782053773,42.00489271,179.07,178.92,42.00489271]
[1736782054774,2.7952,178.96,178.92,42.00489271]
[1736782054978,42.00489271,179.07,178.92,42.00489271]
[1736782055580,42.00489271,179.07,178.89,42.00489271]
[1736782055783,2.7954,178.95,178.89,44.80109271]
[1736782056080,42.00489271,179.01,178.87,95.78]
[1736782056284,2.7957,178.93,178.86,44.80139271]
[1736782056480,4.1558,179.0,178.86,42.00489271]
[1736782056978,4.1558,179.0,178.83,42.00489271]
[1736782057173,4.1558,179.0,178.86,42.00489271]
[1736782057375,2.7952,178.96,178.89,42.00489271]
[1736782057578,4.1558,179.0,178.89,42.00489271]
[1736782058082,2.0371,179.0,178.92,42.00489271]
[1736782058477,2.0371,179.0,178.88,8.38]
[1736782058781,1.9308,179.08,178.98,42.00489271]
[1736782058980,3.9768,179.08,178.98,42.00489271]
[1736782059178,3.9768,179.08,178.95,42.00489271]
[1736782059571,2.7945,179.0,178.95,44.80019271]
[1736782060078,2.7941,179.03,178.92,42.00489271]
[1736782060377,3.9768,179.08,178.95,42.00489271]
[1736782060573,3.9768,179.08,178.98,42.00489271]
[1736782061174,3.9768,179.08,179.0,2.7944]
[1736782061175,2.7936,179.07,179.0,2.7944]
[1736782061381,8.38,179.14,179.01,42.00489271]
[1736782061585,5.8788,179.15,179.04,42.00489271]
[1736782061777,2.793,179.1,179.05,2.7937]
[1736782061982,5.8788,179.15,179.04,42.00489271]
[1736782062384,2.7933,179.08,179.04,42.00489271]
[1736782062883,5.8788,179.15,179.01,42.00489271]
[1736782062884,2.7937,179.05,179.01,42.00489271]
[1736782063086,5.8788,179.15,179.01,42.00489271]
[1736782063583,5.8788,179.15,179.04,42.00489271]
[1736782064180,5.8788,179.15,179.07,42.00489271]
[1736782064577,1.9186,179.15,179.07,42.00489271]
[1736782064776,2.7928,179.12,179.07,44.79819271]
[1736782065175,1.9186,179.15,179.07,44.79819271]
[1736782065176,2.7929,179.11,179.07,42.00489271]
[1736782065379,1.9186,179.15,179.07,42.00489271]
[1736782065583,1.9186,179.15,179.04,42.00489271]
[1736782065886,2.7934,179.07,179.04,42.00489271]
[1736782066184,1.9186,179.15,178.98,42.00489271]
[1736782066384,2.7937,179.06,179.01,42.00489271]
[1736782066585,1.9186,179.15,179.04,42.00489271]
[1736782066887,1.9186,179.15,179.07,42.00489271]
[1736782067086,4.0445,179.21,179.07,42.00489271]
[1736782067386,6.109,179.21,179.07,42.00489271]
[1736782067787,6.109,179.21,179.1,42.00489271]
[1736782067983,2.0645,179.21,179.13,42.00489271]
[1736782068988,2.792,179.16,179.13,42.00489271]
[1736782069988,2.0645,179.21,179.1,44.79779271]
[1736782070283,2.0645,179.21,179.07,42.00489271]
[1736782070587,2.0645,179.21,179.04,8.38]
[1736782070588,2.7935,179.07,179.04,42.00489271]
[1736782070788,42.00489271,179.16,179.01,42.00489271]
[1736782070992,42.00489271,179.13,178.99,2.7945]
[1736782071288,2.0599,179.15,178.98,50.38489271]
[1736782071488,2.0599,179.15,179.01,42.00489271]
[1736782071789,42.00489271,179.13,178.98,50.38489271]
[1736782072188,2.7941,179.03,178.99,2.7945]
[1736782072387,42.00489271,179.13,178.98,50.38489271]
[1736782072785,2.0599,179.15,178.98,8.38]
[1736782072993,50.36489271,179.25,179.1,42.00489271]
[1736782073192,2.792,179.17,179.11,2.7927]
[1736782073387,1.9676,179.24,179.13,42.00489271]
[1736782073983,1.9676,179.24,179.07,42.00489271]
[1736782074487,10.4245,179.21,179.07,42.00489271]
[1736782075091,10.4245,179.21,179.07,44.79829271]
[1736782075092,2.7927,179.12,179.07,44.79829271]
[1736782075287,10.4245,179.21,179.07,42.00489271]
[1736782075487,2.0645,179.21,179.07,42.00489271]
[1736782075686,2.7928,179.12,179.07,44.79819271]
[1736782077392,2.0645,179.21,179.07,42.00489271]
[1736782077592,2.0645,179.21,178.86,5.5934]
[1736782077799,42.00489271,179.12,178.97,2.7949]
[1736782078003,4.0296,179.11,178.97,2.7949]
[1736782078292,2.7943,179.02,178.97,2.7949]
[1736782078497,1.9416,179.1,178.98,2.7948]
[1736782078793,1.9416,179.1,178.91,8.36]
[1736782078994,1.9416,179.1,179.02,42.00489271]
[1736782079198,2.0859,179.17,179.05,42.00489271]
[1736782079398,4.0588,179.17,179.05,42.00489271]
[1736782079597,1.9729,179.17,179.05,42.00489271]
[1736782080192,1.9729,179.17,179.02,42.00489271]
[1736782080388,1.9729,179.17,179.08,42.00489271]
[1736782080692,13.96317511,179.21,179.11,42.00489271]
[1736782080893,60.52234264,179.23,179.14,42.00489271]
[1736782081093,90.78351396,179.25,179.14,42.00489271]
[1736782081296,90.78351396,179.25,179.11,42.00489271]
[1736782081497,8.36,179.24,179.08,42.00489271]
[1736782081692,8.36,179.24,179.11,42.00489271]
[1736782082297,6.097,179.26,179.17,42.00489271]
[1736782082499,61.52326064,179.3,179.2,42.00489271]
[1736782082694,2.7903,179.27,179.22,2.791]
[1736782082893,61.52326064,179.28,179.23,42.00489271]
[1736782083096,61.52326064,179.28,179.26,42.00489271]
[1736782083902,2.103,179.38,179.26,42.00489271]
[1736782084100,42.00489271,179.37,179.2,50.36489271]
[1736782084291,42.00489271,179.34,179.17,42.00489271]
[1736782084497,3.9634,179.33,179.17,42.00489271]
[1736782084696,12.3234,179.33,179.2,42.00489271]
[1736782085299,42.00489271,179.28,179.14,42.00489271]
[1736782085505,1.9373,179.27,179.14,42.00489271]
[1736782085902,1.9373,179.27,179.17,42.00489271]
[1736782086095,1.9373,179.27,179.14,42.00489271]
[1736782086296,42.00489271,179.26,179.11,42.00489271]
[1736782087593,42.00489271,179.23,179.08,42.00489271]
[1736782087805,4.0498,179.22,179.08,42.00489271]
[1736782088006,4.0498,179.22,179.05,42.00489271]
[1736782088300,42.00489271,179.2,179.05,42.00489271]
[1736782088496,2.7925,179.14,179.08,2.7933]
[1736782088698,4.0498,179.22,179.05,42.00489271]
[1736782088900,4.0498,179.22,179.11,42.00489271]
[1736782089097,3.8956,179.27,179.14,42.00489271]
[1736782089606,42.00489271,179.23,179.1,42.00489271]
[1736782089898,3.8956,179.27,179.1,42.00489271]
[1736782090100,1.9373,179.27,179.18,42.00489271]
[1736782090403,2.7906,179.25,179.19,2.7915]
[1736782090699,1.9373,179.27,179.18,42.00489271]
[1736782091004,42.00489271,179.24,179.09,42.00489271]
[1736782091202,42.00489271,179.21,179.06,42.00489271]
[1736782091407,2.0693,179.2,179.06,42.00489271]
[1736782091607,2.7926,179.12,179.08,2.7933]
[1736782091803,2.7926,179.12,179.06,42.00489271]
[1736782092806,2.7931,179.09,179.03,42.00489271]
[1736782093012,42.00489271,179.18,179.03,42.00489271]
[1736782093205,2.7927,179.12,179.03,42.00489271]
[1736782093401,2.7927,179.12,179.06,42.00489271]
[1736782094108,2.0639,179.17,179.06,42.00489271]
[1736782094413,2.0639,179.17,179.03,42.00489271]
[1736782094710,2.7933,179.08,179.03,44.79889271]
[1736782096512,8.36,179.14,179.0,42.00489271]
[1736782096708,42.00489271,179.09,178.93,95.82]
[1736782097016,42.00489271,179.06,178.93,2.7955]
[1736782097313,2.013,179.05,178.92,42.00489271]
[1736782097506,2.7949,178.98,178.93,2.7955]
[1736782097904,2.013,179.05,178.92,42.00489271]
[1736782097905,10.373,179.05,178.92,42.00489271]
[1736782098307,10.373,179.05,178.9,2.796]
[1736782098514,2.7944,179.01,178.9,2.796]
[1736782098710,10.373,179.05,178.9,2.796]
[1736782099218,2.7953,178.96,178.9,2.796]
[1736782099514,10.373,179.05,178.89,42.00489271]
[1736782099708,2.7956,178.94,178.89,42.00489271]
[1736782100212,2.7958,178.92,178.86,44.80149271]
[1736782100405,42.00489271,179.03,178.86,42.00489271]
[1736782100611,42.00489271,179.0,178.86,42.00489271]
[1736782100914,1.9736,178.99,178.86,42.00489271]
[1736782101215,1.9736,178.99,178.86,44.80159271]
[1736782101509,2.7969,178.85,178.8,44.80249271]
[1736782101717,1.9736,178.99,178.77,42.00489271]
[1736782101718,42.00489271,178.91,178.77,42.00489271]
[1736782101918,1.9505,178.9,178.77,42.00489271]
[1736782102110,2.7967,178.87,178.77,44.80299271]
[1736782102413,42.00489271,178.88,178.74,42.00489271]
[1736782102715,1.991,178.87,178.74,42.00489271]
[1736782103211,1.991,178.87,178.71,42.00489271]
[1736782103611,42.00489271,178.85,178.71,42.00489271]
[1736782103815,8.36,178.84,178.71,42.00489271]
[1736782104815,8.36,178.84,178.68,42.00489271]
[1736782105213,61.52326064,178.73,178.68,2.94759168]
[1736782105516,61.52326064,178.72,178.61,8.36]
[1736782105714,61.52326064,178.72,178.71,42.00489271]
[1736782105916,61.52326064,178.72,178.65,42.00489271]
[1736782106113,61.52326064,178.77,178.65,42.00489271]
[1736782106310,2.7994,178.69,178.65,42.00489271]
[1736782106515,42.00489271,178.73,178.59,42.00489271]
[1736782106907,45.95599271,178.76,178.59,42.00489271]
[1736782107112,2.7997,178.67,178.61,2.8006]
[1736782107316,8.36,178.75,178.59,42.00489271]
[1736782107617,8.36,178.75,178.62,42.00489271]
[1736782107819,8.36,178.75,178.59,42.00489271]
[1736782108011,42.00489271,178.7,178.55,42.00489271]
[1736782108412,2.0302,178.69,178.55,44.80629271]
[1736782108720,2.0302,178.69,178.55,42.00489271]
[1736782108919,42.00489271,178.66,178.52,42.00489271]
[1736782109123,3.9932,178.65,178.49,42.00489271]
[1736782109316,2.801,178.59,178.53,2.8019]
[1736782109518,42.00489271,178.63,178.49,42.00489271]
[1736782110122,42.00489271,178.63,178.43,8.36]
[1736782110123,42.00489271,178.63,178.46,42.00489271]
[1736782110618,42.00489271,178.63,178.49,42.00489271]
[1736782111018,3.9932,178.65,178.52,42.00489271]
[1736782111416,1.9807,178.65,178.59,2.8008]
[1736782111618,1.9807,178.65,178.55,42.00489271]
[1736782112009,2.7996,178.68,178.58,42.00489271]
[1736782112210,4.0184,178.74,178.61,42.00489271]
[1736782112415,2.0745,178.74,178.64,42.00489271]
[1736782112718,1.9439,178.79,178.67,42.00489271]
[1736782113121,63.62756064,178.8,178.67,42.00489271]
[1736782113323,2.1043,178.8,178.67,42.00489271]
[1736782113510,2.1043,178.8,178.7,42.00489271]
[1736782113711,61.52326064,178.86,178.73,42.00489271]
[1736782113917,61.52326064,178.86,178.76,42.00489271]
[1736782114112,61.52326064,178.86,178.73,42.00489271]
[1736782114519,2.7974,178.82,178.75,2.7984]
[1736782114717,42.00489271,178.87,178.75,2.7984]
[1736782114920,42.00489271,178.87,178.73,42.00489271]
[1736782115221,12.3836,178.89,178.76,42.00489271]
[1736782116030,2.7971,178.84,178.76,42.00489271]
[1736782116231,2.7971,178.84,178.73,42.00489271]
[1736782116627,42.00489271,178.84,178.64,96.04]
[1736782116833,42.00489271,178.84,178.7,42.00489271]
[1736782117433,42.00489271,178.84,178.67,42.00489271]
[1736782117630,42.00489271,178.84,178.67,2.9454815]
[1736782118133,2.798,178.78,178.71,2.799]
[1736782118337,42.00489271,178.81,178.68,42.00489271]
[1736782118636,42.00489271,178.81,178.65,42.00489271]
[1736782118838,42.00489271,178.81,178.68,2.7995]
[1736782119034,43.99829271,178.81,178.65,42.00489271]
[1736782119233,42.00489271,178.78,178.64,96.04]
[1736782119433,2.7989,178.73,178.66,2.7998]
[1736782120236,3.9032,178.77,178.64,96.04]
[1736782120533,3.9032,178.77,178.65,42.00489271]
[1736782120738,61.52326064,178.86,178.71,42.00489271]
[1736782120933,61.52326064,178.86,178.74,42.00489271]
[1736782121533,2.0111,178.88,178.74,42.00489271]
[1736782121727,2.0111,178.88,178.76,2.7981]
[1736782121931,2.0111,178.88,178.74,42.00489271]
[1736782122237,2.7978,178.8,178.73,2.7987]
[1736782122440,2.7978,178.8,178.71,42.00489271]
[1736782122738,42.00489271,178.86,178.71,42.00489271]
[1736782122935,2.7976,178.81,178.75,2.7984]
[1736782123128,42.00489271,178.86,178.71,42.00489271]
[1736782123330,2.7981,178.78,178.71,2.7989]
[1736782123528,42.00489271,178.83,178.68,42.00489271]
[1736782124638,2.7979,178.79,178.73,2.7987]
[1736782124833,42.00489271,178.86,178.68,42.00489271]
[1736782125132,42.00489271,178.86,178.71,42.00489271]
[1736782125932,42.00489271,178.86,178.68,42.00489271]
[1736782125933,2.7979,178.79,178.68,42.00489271]
[1736782126137,42.00489271,178.83,178.68,42.00489271]
[1736782126936,2.7981,178.77,178.68,42.00489271]
[1736782127632,42.00489271,178.83,178.71,2.7989]
[1736782127839,42.00489271,178.83,178.68,42.00489271]
[1736782128038,61.52326064,178.84,178.71,42.00489271]
[1736782128240,61.52326064,178.84,178.74,42.00489271]
[1736782128438,2.7973,178.83,178.77,2.7981]
[1736782128635,61.52326064,178.81,178.77,2.7981]
[1736782128833,61.52326064,178.81,178.74,41.95396199]
[1736782129138,151.30585661,178.84,178.74,41.95396199]
[1736782129139,61.52326064,178.84,178.74,41.95396199]
[1736782129330,2.7976,178.8,178.71,42.00489271]
[1736782129934,2.7976,178.8,178.74,2.7984]
[1736782130138,2.7978,178.79,178.74,2.7984]
[1736782130436,103.52815335,178.83,178.65,42.00489271]
[1736782130938,61.52326064,178.79,178.65,42.00489271]
[1736782131140,1.9455,178.78,178.65,42.00489271]
[1736782131732,2.7986,178.74,178.69,2.7992]
[1736782131938,61.52326064,178.76,178.65,42.00489271]
[1736782133041,61.52326064,178.74,178.65,42.00489271]
[1736782133335,61.52326064,178.74,178.7,2.7991]
[1736782134039,61.52326064,178.73,178.65,42.00489271]
[1736782134231,61.52326064,178.73,178.64,96.04]
[1736782134631,2.7991,178.71,178.66,2.7997]
[1736782134833,61.52326064,178.73,178.59,42.00489271]
[1736782135037,61.52326064,178.72,178.59,42.00489271]
[1736782135331,2.7998,178.67,178.62,2.8004]
[1736782135642,42.00489271,178.71,178.56,42.00489271]
[1736782136039,2.8001,178.65,178.6,2.8007]
[1736782136645,61.52326064,178.68,178.59,42.00489271]
[1736782137141,61.52326064,178.64,178.59,42.00489271]
[1736782137442,61.52326064,178.64,178.56,42.00489271]
[1736782138040,52.77666064,178.65,178.61,42.00489271]
[1736782138239,42.90166064,178.65,178.64,42.00489271]
[1736782138449,23.50516064,178.65,178.64,44.80499271]
[1736782138844,93.17891573,178.73,178.64,42.00489271]
[1736782138845,90.78351396,178.69,178.64,42.00489271]
[1736782139244,90.78351396,178.69,178.61,42.00489271]
[1736782139442,90.78351396,178.69,178.58,42.00489271]
[1736782139746,90.78351396,178.73,178.61,2.8006]
[1736782140041,90.78351396,178.73,178.58,42.00489271]
[1736782140437,90.78351396,178.73,178.61,42.00489271]
[1736782140846,151.30585661,178.75,178.64,42.00489271]
[1736782141241,2.7997,178.67,178.63,2.8002]
[1736782141546,14.97422509,178.72,178.63,2.8002]
[1736782141740,14.97422509,178.72,178.61,42.00489271]
[1736782141941,14.97422509,178.72,178.64,42.00489271]
[1736782142644,92.76463772,178.75,178.61,42.00489271]
[1736782142847,42.00489271,178.74,178.58,42.00489271]
[1736782143141,42.00489271,178.71,178.55,42.00489271]
[1736782143746,42.00489271,178.68,178.52,42.00489271]
[1736782143949,12.4359,178.67,178.52,42.00489271]
[1736782144247,2.8009,178.59,178.52,42.00489271]
[1736782144450,42.00489271,178.62,178.46,42.00489271]
[1736782144650,2.8012,178.58,178.48,2.8026]
[1736782144842,1.9097,178.57,178.46,42.00489271]
[1736782145042,42.00489271,178.56,178.39,42.00489271]
[1736782145242,1.9097,178.57,178.41,12.45595896]
[1736782145243,2.8029,178.47,178.41,12.45595896]
[1736782145450,42.00489271,178.53,178.41,12.45595896]
[1736782145451,42.00489271,178.53,178.41,9.65225896]
[1736782146143,42.00489271,178.47,178.33,42.00489271]
[1736782146344,2.8036,178.42,178.36,2.8045]
[1736782146549,4.0179,178.46,178.33,42.00489271]
[1736782146747,2.0059,178.46,178.36,42.00489271]
[1736782146937,2.8027,178.48,178.41,2.8037]
[1736782147144,8.34,178.51,178.36,42.00489271]
[1736782147345,8.34,178.51,178.39,42.00489271]
[1736782147545,18.99212509,178.52,178.42,42.00489271]
[1736782147752,16.98012509,178.52,178.42,42.00489271]
[1736782148042,14.97422509,178.52,178.5,2.8023]
[1736782148245,14.97422509,178.52,178.45,42.00489271]
[1736782148451,14.97422509,178.51,178.45,42.00489271]
[1736782148649,14.97422509,178.51,178.47,2.8028]
[1736782149051,14.97422509,178.51,178.45,42.00489271]
[1736782149253,153.36805661,178.55,178.47,2.8027]
[1736782149254,2.0622,178.55,178.47,2.8027]
[1736782149652,2.0622,178.55,178.45,42.00489271]
[1736782150652,2.0622,178.55,178.49,2.8024]
[1736782150856,2.0622,178.55,178.42,42.00489271]
[1736782151554,2.802,178.53,178.42,42.00489271]
[1736782151757,2.007,178.54,178.42,42.00489271]
[1736782151952,2.8024,178.5,178.43,2.8033]
[1736782152157,42.00489271,178.53,178.43,2.8033]
[1736782152653,2.8025,178.49,178.43,2.8033]
[1736782152859,3.9966,178.54,178.38,42.00489271]
[1736782153349,3.9966,178.54,178.44,2.8032]
[1736782153551,42.00489271,178.53,178.44,2.8032]
[1736782153751,42.00489271,178.53,178.38,42.00489271]
[1736782153752,42.00489271,178.5,178.35,42.00489271]
[1736782153957,42.00489271,178.5,178.4,2.8038]
[1736782154147,2.8031,178.45,178.35,42.00489271]
[1736782154355,2.8031,178.45,178.32,42.00489271]
[1736782154551,42.00489271,178.47,178.36,2.8044]
[1736782154753,2.8037,178.42,178.36,2.8044]
[1736782154958,42.00489271,178.44,178.29,42.00489271]
[1736782155150,4.0486,178.41,178.35,2.8047]
[1736782155351,84.00978542,178.56,178.35,2.8047]
[1736782155352,92.76463772,178.55,178.35,42.00489271]
[1736782155553,4.0486,178.52,178.39,42.00489271]
[1736782156059,4.0486,178.52,178.42,42.00489271]
[1736782156258,4.0486,178.52,178.47,2.8027]
[1736782156558,6.8507,178.52,178.42,42.00489271]
[1736782156756,4.0486,178.52,178.5,2.8023]
[1736782156953,1.9966,178.52,178.45,42.00489271]
[1736782157349,1.9966,178.52,178.51,2.8022]
[1736782157559,2.8013,178.57,178.48,42.00489271]
[1736782157862,1.9966,178.57,178.42,42.00489271]
[1736782158160,1.9966,178.57,178.46,2.8029]
[1736782159259,2.8015,178.56,178.45,42.00489271]
[1736782159458,1.9966,178.57,178.48,42.00489271]
[1736782159855,1.9966,178.57,178.51,42.00489271]
[1736782160260,1.9966,178.57,178.48,42.00489271]
[1736782160461,2.8017,178.54,178.48,42.00489271]
[1736782160856,1.9966,178.57,178.45,42.00489271]
[1736782161052,42.00489271,178.56,178.42,42.00489271]
[1736782161258,50.34489271,178.56,178.39,42.00489271]
[1736782161459,50.34489271,178.56,178.42,2.8035]
[1736782161660,2.8028,178.48,178.42,2.8035]
[1736782161862,50.34489271,178.56,178.39,42.00489271]
[1736782162058,2.8026,178.49,178.44,2.8033]
[1736782162251,42.00489271,178.53,178.39,42.00489271]
[1736782162456,2.0334,178.48,178.39,42.00489271]
[1736782162660,4.083,178.47,178.36,42.00489271]
[1736782163057,4.083,178.47,178.33,42.00489271]
[1736782163453,54.42789271,178.47,178.33,42.00489271]
[1736782164058,54.42789271,178.47,178.29,42.00489271]
[1736782164356,42.00489271,178.44,178.29,42.00489271]
[1736782165159,2.8041,178.39,178.33,2.805]
[1736782165664,2.8043,178.38,178.32,2.8052]
[1736782166058,1.9051,178.37,178.32,2.8052]
[1736782166261,1.9051,178.37,178.29,42.00489271]
[1736782166963,1.9051,178.37,178.28,2.8058]
[1736782167264,2.0532,178.36,178.28,2.8058]
[1736782167461,2.805,178.33,178.27,2.8059]
[1736782168257,4.0085,178.36,178.25,2.8061]
[1736782168962,4.0085,178.36,178.23,2.8064]
[1736782169159,46.01339271,178.36,178.23,2.8064]
[1736782169461,2.8057,178.29,178.19,42.00489271]
[1736782169660,2.0532,178.36,178.28,42.00489271]
[1736782169861,2.0532,178.36,178.2,42.00489271]
[1736782169862,1.9051,178.37,178.31,42.00489271]
[1736782170163,1.9051,178.37,178.28,42.00489271]
[1736782170761,1.9051,178.37,178.28,44.81069271]
[1736782170762,2.805,178.34,178.28,44.81069271]
[1736782171269,1.9051,178.37,178.25,42.00489271]
[1736782171563,50.34489271,178.36,178.22,42.00489271]
[1736782172166,2.8052,178.32,178.24,2.8063]
[1736782172367,50.34489271,178.36,178.22,42.00489271]
[1736782173565,2.8055,178.31,178.25,2.8063]
[1736782173865,50.34489271,178.36,178.25,2.8063]
[1736782174266,42.00489271,178.36,178.26,2.8061]
[1736782174664,2.8051,178.33,178.25,42.00489271]
[1736782174867,2.8051,178.33,178.27,2.8058]
[1736782175166,1.9051,178.37,178.27,2.8058]
[1736782175370,1.9051,178.37,178.2,42.00489271]
[1736782175563,42.00489271,178.36,178.2,42.00489271]
[1736782176963,1.9051,178.37,178.2,42.00489271]
[1736782177173,1.9051,178.37,178.26,42.00489271]
[1736782177364,2.805,178.34,178.28,2.8057]
[1736782177564,63.17844599,178.37,178.26,42.00489271]
[1736782177766,63.17844599,178.37,178.23,42.00489271]
[1736782177962,42.00489271,178.36,178.23,42.00489271]
[1736782178168,42.00489271,178.36,178.2,42.00489271]
[1736782178671,2.8056,178.3,178.24,2.8063]
[1736782178871,2.8056,178.3,178.2,42.00489271]
[1736782179163,2.8061,178.26,178.21,2.8068]
[1736782179367,8.34,178.31,178.17,42.00489271]
[1736782179572,2.8061,178.26,178.21,2.8067]
[1736782179869,2.0781,178.3,178.2,42.00489271]
[1736782180066,2.8058,178.29,178.23,2.8066]
[1736782180264,2.0781,178.3,178.2,42.00489271]
[1736782180668,2.0781,178.3,178.17,42.00489271]
[1736782180864,2.0781,178.3,178.2,42.00489271]
[1736782181170,2.8058,178.28,178.23,2.8066]
[1736782181365,2.0781,178.3,178.23,2.8066]
[1736782182072,2.0781,178.3,178.2,42.00489271]
[1736782182271,2.8063,178.25,178.21,2.8067]
[1736782182471,2.0383,178.32,178.2,42.00489271]
[1736782182671,2.0383,178.32,178.17,42.00489271]
[1736782183270,2.8059,178.28,178.22,2.8067]
[1736782183471,2.8059,178.28,178.17,42.00489271]
[1736782183871,2.8059,178.28,178.23,2.8065]
[1736782184072,2.0383,178.32,178.2,42.00489271]
[1736782184373,2.0383,178.32,178.23,42.00489271]
[1736782184577,2.0383,178.32,178.24,2.8064]
[1736782184773,2.8057,178.29,178.24,2.8064]
[1736782184974,2.0383,178.32,178.25,2.8061]
[1736782185474,2.8055,178.3,178.23,42.00489271]
[1736782185680,63.28114599,178.36,178.26,42.00489271]
[1736782185871,61.27334599,178.36,178.29,42.00489271]
[1736782186076,61.27334599,178.35,178.29,42.00489271]
[1736782186275,61.27334599,178.35,178.34,2.8048]
[1736782186784,92.76463772,178.36,178.35,2.8047]
[1736782186987,92.59183086,178.4,178.35,42.00489271]
[1736782187282,92.59183086,178.4,178.39,42.00489271]
[1736782187682,92.59183086,178.4,178.39,44.80899271]
[1736782188080,151.30585661,178.42,178.39,44.80899271]
[1736782188081,151.30585661,178.42,178.39,42.00489271]
[1736782188290,140.12325661,178.51,178.39,42.00489271]
[1736782188487,140.12325661,178.51,178.45,42.00489271]
[1736782189187,2.8019,178.53,178.46,2.803]
[1736782189383,42.00489271,178.64,178.48,42.00489271]
[1736782189588,2.801,178.59,178.52,2.802]
[1736782189888,5.8356,178.61,178.52,2.802]
[1736782190279,5.8356,178.61,178.51,42.00489271]
[1736782190485,5.8356,178.61,178.47,42.00489271]
[1736782190687,2.8013,178.57,178.5,44.80719271]
[1736782191088,3.9237,178.61,178.53,42.00489271]
[1736782191294,3.9237,178.61,178.54,2.8016]
[1736782191889,2.8003,178.64,178.56,2.8014]
[1736782192089,4.0327,178.68,178.59,42.00489271]
[1736782192489,2.7993,178.7,178.62,42.00489271]
[1736782192688,4.0327,178.75,178.62,42.00489271]
[1736782193292,2.799,178.72,178.62,44.80519271]
[1736782193486,4.0327,178.75,178.62,42.00489271]
[1736782193789,2.7991,178.71,178.65,2.8]
[1736782193994,4.0327,178.75,178.65,42.00489271]
[1736782194696,2.7986,178.74,178.65,42.00489271]
[1736782194990,4.0327,178.75,178.68,42.00489271]
[1736782195190,2.0367,178.8,178.68,42.00489271]
[1736782195690,4.1474,178.82,178.68,42.00489271]
[1736782196186,2.798,178.78,178.68,44.80429271]
[1736782196386,4.1474,178.82,178.65,42.00489271]
[1736782196787,42.00489271,178.8,178.65,42.00489271]
[1736782197295,4.1474,178.82,178.65,42.00489271]
[1736782197495,4.1474,178.82,178.68,42.00489271]
[1736782197699,2.798,178.78,178.69,2.7993]
[1736782197888,4.1474,178.82,178.69,2.7993]
[1736782198090,4.1474,178.82,178.68,42.00489271]
[1736782198593,2.7983,178.76,178.7,2.7992]
[1736782198794,4.1474,178.82,178.68,42.00489271]
[1736782199190,4.1474,178.82,178.65,42.00489271]
[1736782199191,2.7976,178.81,178.72,2.7989]
[1736782199491,2.7976,178.81,178.71,42.00489271]
[1736782199693,4.1474,178.82,178.68,42.00489271]
[1736782199900,4.1474,178.82,178.69,2.7993]
[1736782200289,4.1474,178.82,178.68,42.00489271]
[1736782200494,42.00489271,178.8,178.65,42.00489271]
[1736782200696,4.1474,178.82,178.68,42.00489271]
[1736782200896,2.7976,178.81,178.73,2.7987]
[1736782201096,4.1474,178.82,178.71,42.00489271]
[1736782201397,2.7982,178.77,178.7,2.7991]
[1736782201701,4.1474,178.82,178.68,42.00489271]
[1736782201998,2.7986,178.74,178.68,42.00489271]
[1736782202594,42.00489271,178.75,178.62,42.00489271]
[1736782202790,42.00489271,178.72,178.59,42.00489271]
[1736782202991,2.7997,178.67,178.57,2.8012]
[1736782203189,42.00489271,178.69,178.53,146.40489271]